[Event "Titled Tuesday Blitz March 08 Early 2022"]
[White "De Arruda, Leandro Formes"]
[Black "Tarini, Goyal"]
[WhiteFideId "22722009"]
[BlackFideId "5082749"]
[WhiteElo "1852"]
[BlackElo "1772"]
[Result "0-1"]
[Round "07"]
[TimeControl "180+1"]
[Date "2022.03.09"]
[WhiteClock "0:00:16"]
[BlackClock "0:00:17"]

1. d4 {[%clk 0:03:00]}  d5 {[%clk 0:02:58]} 2. Nf3 {[%clk 0:03:01]}  c5 {[%clk 0:02:56]} 3. e3 {[%clk 0:03:02]}  Nf6 {[%clk 0:02:56]} 4. Nbd2 {[%clk 0:03:01]}  Nc6 {[%clk 0:02:55]} 5. Be2 {[%clk 0:03:01]}  h6 {[%clk 0:02:50]} 6. O-O {[%clk 0:03:01]}  Bf5 {[%clk 0:02:50]} 7. c3 {[%clk 0:02:59]}  e6 {[%clk 0:02:50]} 8. Ne5 {[%clk 0:02:58]}  Bd6 {[%clk 0:02:46]} 9. f4 {[%clk 0:02:48]}  O-O {[%clk 0:02:44]} 10. Qe1 {[%clk 0:02:48]}  Ne4 {[%clk 0:02:20]} 11. Bf3 {[%clk 0:02:44]}  f6 {[%clk 0:02:17]} 12. Nxc6 {[%clk 0:02:42]}  bxc6 {[%clk 0:02:17]} 13. Qh4 {[%clk 0:02:37]}  Nxd2 {[%clk 0:02:07]} 14. Bxd2 {[%clk 0:02:38]}  Rb8 {[%clk 0:02:06]} 15. b3 {[%clk 0:02:37]}  c4 {[%clk 0:02:01]} 16. b4 {[%clk 0:02:35]}  a5 {[%clk 0:01:56]} 17. a3 {[%clk 0:02:33]}  Qc7 {[%clk 0:01:45]} 18. g4 {[%clk 0:02:29]}  Bd3 {[%clk 0:01:43]} 19. Rf2 {[%clk 0:02:27]}  Ra8 {[%clk 0:01:41]} 20. Rc1 {[%clk 0:02:18]}  axb4 {[%clk 0:01:39]} 21. axb4 {[%clk 0:02:19]}  Ra2 {[%clk 0:01:38]} 22. g5 {[%clk 0:02:10]}  fxg5 {[%clk 0:01:34]} 23. fxg5 {[%clk 0:02:10]}  hxg5 {[%clk 0:01:27]} 24. Qxg5 {[%clk 0:02:11]}  Rxd2 {[%clk 0:01:05]} 25. Rxd2 {[%clk 0:02:07]}  Rxf3 {[%clk 0:01:05]} 26. Rg2 {[%clk 0:01:59]}  Qf7 {[%clk 0:01:01]} 27. Qd8+ {[%clk 0:01:52]}  Bf8 {[%clk 0:00:58]} 28. h4 {[%clk 0:01:16]}  Rf1+ {[%clk 0:00:31]} 29. Rxf1 {[%clk 0:01:15]}  Qxf1+ {[%clk 0:00:32]} 30. Kh2 {[%clk 0:01:15]}  Be4 {[%clk 0:00:32]} 31. Rg5 {[%clk 0:00:58]}  Qh1+ {[%clk 0:00:22]} 32. Kg3 {[%clk 0:00:57]}  Qg2+ {[%clk 0:00:22]} 33. Kf4 {[%clk 0:00:55]}  Qf3+ {[%clk 0:00:22]} 34. Ke5 {[%clk 0:00:52]}  Qxe3 {[%clk 0:00:19]} 35. Kxe6 {[%clk 0:00:33]}  Bf5+ {[%clk 0:00:17]} 36. Kxf5 {[%clk 0:00:16]}  Qe4# {[%clk 0:00:17]} 0-1


[Site "https://www.chess.com"]

[Event "Titled Tuesday Blitz March 08 Early 2022"]
[White "De Souza, Cristiano Gomes"]
[Black "Zemerov, Vladimir"]
[WhiteFideId "2151758"]
[BlackFideId "4111583"]
[WhiteElo "2068"]
[BlackElo "2277"]
[Result "0-1"]
[Round "07"]
[TimeControl "180+1"]
[Date "2022.03.09"]
[WhiteClock "0:00:28"]
[BlackClock "0:00:23"]

1. d4 {[%clk 0:03:00]}  e6 {[%clk 0:02:57]} 2. c4 {[%clk 0:02:59]}  d5 {[%clk 0:02:56]} 3. Nf3 {[%clk 0:02:59]}  Nf6 {[%clk 0:02:56]} 4. Nc3 {[%clk 0:02:59]}  Bb4 {[%clk 0:02:55]} 5. Bg5 {[%clk 0:02:58]}  O-O {[%clk 0:02:55]} 6. e3 {[%clk 0:02:56]}  c5 {[%clk 0:02:55]} 7. Bxf6 {[%clk 0:02:55]}  Qxf6 {[%clk 0:02:55]} 8. Rc1 {[%clk 0:02:55]}  Nc6 {[%clk 0:02:54]} 9. dxc5 {[%clk 0:02:55]}  Rd8 {[%clk 0:02:51]} 10. cxd5 {[%clk 0:02:54]}  exd5 {[%clk 0:02:49]} 11. Be2 {[%clk 0:02:51]}  d4 {[%clk 0:02:48]} 12. exd4 {[%clk 0:02:51]}  Nxd4 {[%clk 0:02:48]} 13. Nxd4 {[%clk 0:02:47]}  Rxd4 {[%clk 0:02:48]} 14. Qb3 {[%clk 0:02:45]}  Be6 {[%clk 0:02:47]} 15. Qc2 {[%clk 0:02:42]}  Bf5 {[%clk 0:02:45]} 16. Qb3 {[%clk 0:02:42]}  Re8 {[%clk 0:02:36]} 17. O-O {[%clk 0:02:39]}  Bxc5 {[%clk 0:02:28]} 18. Bf3 {[%clk 0:02:36]}  b6 {[%clk 0:02:27]} 19. Rfe1 {[%clk 0:02:28]}  Red8 {[%clk 0:02:25]} 20. Rcd1 {[%clk 0:02:27]}  h6 {[%clk 0:02:20]} 21. Rxd4 {[%clk 0:02:26]}  Qxd4 {[%clk 0:02:16]} 22. Rf1 {[%clk 0:02:18]}  Be6 {[%clk 0:02:10]} 23. Qc2 {[%clk 0:02:17]}  Qd2 {[%clk 0:02:09]} 24. Qxd2 {[%clk 0:02:12]}  Rxd2 {[%clk 0:02:08]} 25. Rd1 {[%clk 0:02:02]}  Rxb2 {[%clk 0:02:00]} 26. Rd8+ {[%clk 0:02:00]}  Kh7 {[%clk 0:02:00]} 27. h3 {[%clk 0:01:58]}  Rxf2 {[%clk 0:01:58]} 28. Kh2 {[%clk 0:01:57]}  Bxa2 {[%clk 0:01:50]} 29. Ne4 {[%clk 0:01:57]}  Rb2 {[%clk 0:01:38]} 30. Rd7 {[%clk 0:01:55]}  Be6 {[%clk 0:01:37]} 31. Rxa7 {[%clk 0:01:54]}  Bd4 {[%clk 0:01:33]} 32. Kg3 {[%clk 0:01:51]}  Be5+ {[%clk 0:01:32]} 33. Kh4 {[%clk 0:01:48]}  f5 {[%clk 0:01:30]} 34. Re7 {[%clk 0:01:36]}  fxe4 {[%clk 0:01:05]} 35. Bxe4+ {[%clk 0:01:35]}  Kg8 {[%clk 0:01:05]} 36. Rxe6 {[%clk 0:01:36]}  Bf6+ {[%clk 0:01:04]} 37. Kg4 {[%clk 0:01:35]}  Kf7 {[%clk 0:01:04]} 38. Bd5 {[%clk 0:01:34]}  Kf8 {[%clk 0:01:04]} 39. Kf5 {[%clk 0:01:30]}  Rb5 {[%clk 0:00:59]} 40. Ke4 {[%clk 0:01:26]}  Rb4+ {[%clk 0:00:56]} 41. Kf3 {[%clk 0:01:26]}  Rb2 {[%clk 0:00:52]} 42. Re2 {[%clk 0:01:17]}  Rb4 {[%clk 0:00:49]} 43. Re4 {[%clk 0:01:16]}  Rb5 {[%clk 0:00:48]} 44. Bc6 {[%clk 0:01:15]}  Rc5 {[%clk 0:00:47]} 45. Be8 {[%clk 0:01:08]}  Bc3 {[%clk 0:00:46]} 46. Bg6 {[%clk 0:01:05]}  Rc8 {[%clk 0:00:42]} 47. g4 {[%clk 0:00:58]}  b5 {[%clk 0:00:42]} 48. h4 {[%clk 0:00:58]}  b4 {[%clk 0:00:42]} 49. h5 {[%clk 0:00:57]}  b3 {[%clk 0:00:41]} 50. Re2 {[%clk 0:00:55]}  b2 {[%clk 0:00:39]} 51. Bc2 {[%clk 0:00:45]}  Be5 {[%clk 0:00:29]} 52. Bg6 {[%clk 0:00:43]}  Rc5 {[%clk 0:00:28]} 53. Re1 {[%clk 0:00:37]}  Ke7 {[%clk 0:00:27]} 54. Rb1 {[%clk 0:00:34]}  Kf6 {[%clk 0:00:25]} 55. Ke2 {[%clk 0:00:33]}  Kg5 {[%clk 0:00:23]} 56. Bf5 {[%clk 0:00:32]}  Bf4 {[%clk 0:00:23]} 57. Kd3 {[%clk 0:00:30]}  Bc1 {[%clk 0:00:22]} 58. Kd4 {[%clk 0:00:29]}  Rxf5 {[%clk 0:00:22]} 59. gxf5 {[%clk 0:00:28]}  Kxf5 {[%clk 0:00:23]} 60. Kd3 {[%clk 0:00:28]}  Kg5 {[%clk 0:00:23]} 0-1


[Site "https://www.chess.com"]

[Event "Titled Tuesday Blitz March 08 Early 2022"]
[White "Dejmek, Mark"]
[Black "Kanyamarala, Trisha"]
[WhiteFideId "2017628"]
[BlackFideId "45004722"]
[WhiteElo "2235"]
[BlackElo "2047"]
[Result "0-1"]
[Round "07"]
[TimeControl "180+1"]
[Date "2022.03.09"]
[WhiteClock "0:00:05"]
[BlackClock "0:01:48"]

1. Nf3 {[%clk 0:02:59]}  d5 {[%clk 0:02:59]} 2. c4 {[%clk 0:02:55]}  d4 {[%clk 0:02:59]} 3. d3 {[%clk 0:02:53]}  c5 {[%clk 0:02:58]} 4. g3 {[%clk 0:02:52]}  Nc6 {[%clk 0:02:56]} 5. Bg2 {[%clk 0:02:52]}  e5 {[%clk 0:02:52]} 6. e3 {[%clk 0:02:50]}  Nf6 {[%clk 0:02:50]} 7. exd4 {[%clk 0:02:49]}  exd4 {[%clk 0:02:49]} 8. O-O {[%clk 0:02:44]}  Be7 {[%clk 0:02:46]} 9. Bf4 {[%clk 0:02:36]}  O-O {[%clk 0:02:43]} 10. Ne5 {[%clk 0:02:26]}  Bd7 {[%clk 0:02:35]} 11. Nxc6 {[%clk 0:02:01]}  Bxc6 {[%clk 0:02:32]} 12. Bxc6 {[%clk 0:02:01]}  bxc6 {[%clk 0:02:32]} 13. Nd2 {[%clk 0:01:56]}  Qd7 {[%clk 0:02:30]} 14. Re1 {[%clk 0:01:49]}  Rfe8 {[%clk 0:02:28]} 15. Qf3 {[%clk 0:01:47]}  Qh3 {[%clk 0:02:27]} 16. Re2 {[%clk 0:01:09]}  Bf8 {[%clk 0:02:22]} 17. Rae1 {[%clk 0:01:07]}  h6 {[%clk 0:02:17]} 18. Qxc6 {[%clk 0:00:48]}  Rxe2 {[%clk 0:02:16]} 19. Rxe2 {[%clk 0:00:48]}  Rd8 {[%clk 0:02:10]} 20. Qg2 {[%clk 0:00:43]}  Qf5 {[%clk 0:02:09]} 21. Ne4 {[%clk 0:00:39]}  Nxe4 {[%clk 0:02:07]} 22. Qxe4 {[%clk 0:00:39]}  Qh5 {[%clk 0:02:05]} 23. Bc7 {[%clk 0:00:34]}  Rd7 {[%clk 0:02:02]} 24. Ba5 {[%clk 0:00:32]}  Re7 {[%clk 0:02:00]} 25. Qxe7 {[%clk 0:00:11]}  Bxe7 {[%clk 0:02:01]} 26. Rxe7 {[%clk 0:00:12]}  Qd1+ {[%clk 0:02:01]} 27. Kg2 {[%clk 0:00:12]}  Qxd3 {[%clk 0:02:01]} 28. b3 {[%clk 0:00:08]}  Qc2 {[%clk 0:01:58]} 29. Bc7 {[%clk 0:00:06]}  Qxa2 {[%clk 0:01:57]} 30. Bd6 {[%clk 0:00:05]}  d3 {[%clk 0:01:52]} 31. Bxc5 {[%clk 0:00:05]}  d2 {[%clk 0:01:51]} 32. Rd7 {[%clk 0:00:05]}  Qc2 {[%clk 0:01:48]} 0-1


[Site "https://www.chess.com"]

[Event "Titled Tuesday Blitz March 08 Early 2022"]
[White "Demin, Vladimir"]
[Black "Politov, Pavel Y."]
[WhiteFideId "4167457"]
[BlackFideId "24110515"]
[WhiteElo "2516"]
[BlackElo "2090"]
[Result "1-0"]
[Round "07"]
[TimeControl "180+1"]
[Date "2022.03.09"]
[WhiteClock "0:01:13"]
[BlackClock "0:00:01"]

1. d4 {[%clk 0:03:00]}  d5 {[%clk 0:02:59]} 2. Bf4 {[%clk 0:02:59]}  Nf6 {[%clk 0:02:58]} 3. Nc3 {[%clk 0:02:59]}  e6 {[%clk 0:02:51]} 4. e3 {[%clk 0:02:58]}  a6 {[%clk 0:02:43]} 5. g4 {[%clk 0:02:57]}  c5 {[%clk 0:02:37]} 6. g5 {[%clk 0:02:56]}  Ne4 {[%clk 0:02:35]} 7. Nxe4 {[%clk 0:02:56]}  dxe4 {[%clk 0:02:36]} 8. dxc5 {[%clk 0:02:54]}  Qxd1+ {[%clk 0:02:07]} 9. Rxd1 {[%clk 0:02:55]}  f5 {[%clk 0:01:54]} 10. gxf6 {[%clk 0:02:50]}  gxf6 {[%clk 0:01:53]} 11. Bd6 {[%clk 0:02:47]}  Nd7 {[%clk 0:01:47]} 12. b4 {[%clk 0:02:41]}  a5 {[%clk 0:01:45]} 13. a3 {[%clk 0:02:41]}  axb4 {[%clk 0:01:44]} 14. axb4 {[%clk 0:02:42]}  Ra2 {[%clk 0:01:32]} 15. Ne2 {[%clk 0:02:31]}  Rxc2 {[%clk 0:00:59]} 16. Nd4 {[%clk 0:02:30]}  Rb2 {[%clk 0:00:59]} 17. Nxe6 {[%clk 0:02:27]}  Rxb4 {[%clk 0:00:56]} 18. Bh3 {[%clk 0:02:20]}  Bxd6 {[%clk 0:00:51]} 19. cxd6 {[%clk 0:02:10]}  Ne5 {[%clk 0:00:38]} 20. O-O {[%clk 0:01:24]}  Rg8+ {[%clk 0:00:26]} 21. Kh1 {[%clk 0:01:22]}  Bxe6 {[%clk 0:00:17]} 22. Bxe6 {[%clk 0:01:21]}  Rg7 {[%clk 0:00:16]} 23. Ra1 {[%clk 0:01:17]}  Nc6 {[%clk 0:00:06]} 24. Rg1 {[%clk 0:01:13]}  Rxg1+ {[%clk 0:00:05]} 25. Rxg1 {[%clk 0:01:14]}  Kf8 {[%clk 0:00:01]} 26. Rg8# {[%clk 0:01:13]} 1-0


[Site "https://www.chess.com"]

[Event "Titled Tuesday Blitz March 08 Early 2022"]
[White "Devaev, Alexander"]
[Black "Kuderinov, Kirill"]
[WhiteFideId "4169395"]
[BlackFideId "13701568"]
[WhiteElo "2185"]
[BlackElo "2432"]
[Result "0-1"]
[Round "07"]
[TimeControl "180+1"]
[Date "2022.03.09"]
[WhiteClock "0:00:39"]
[BlackClock "0:01:28"]

1. Nf3 {[%clk 0:02:36]}  Nf6 {[%clk 0:02:58]} 2. c4 {[%clk 0:02:30]}  g6 {[%clk 0:02:57]} 3. Nc3 {[%clk 0:02:28]}  Bg7 {[%clk 0:02:58]} 4. d4 {[%clk 0:02:27]}  O-O {[%clk 0:02:58]} 5. e4 {[%clk 0:02:28]}  d6 {[%clk 0:02:58]} 6. h3 {[%clk 0:02:29]}  Nbd7 {[%clk 0:02:52]} 7. Bg5 {[%clk 0:02:28]}  c5 {[%clk 0:02:42]} 8. d5 {[%clk 0:02:06]}  a6 {[%clk 0:02:32]} 9. a4 {[%clk 0:01:58]}  h6 {[%clk 0:02:27]} 10. Be3 {[%clk 0:01:58]}  Qa5 {[%clk 0:02:23]} 11. Qd2 {[%clk 0:01:57]}  Kh7 {[%clk 0:02:21]} 12. Bd3 {[%clk 0:01:55]}  b5 {[%clk 0:02:13]} 13. cxb5 {[%clk 0:01:54]}  axb5 {[%clk 0:02:13]} 14. Bxb5 {[%clk 0:01:51]}  Ba6 {[%clk 0:02:11]} 15. O-O-O {[%clk 0:01:34]}  Bxb5 {[%clk 0:02:06]} 16. axb5 {[%clk 0:01:34]}  Rfb8 {[%clk 0:02:02]} 17. Kc2 {[%clk 0:01:29]}  Nxe4 {[%clk 0:01:40]} 18. Nxe4 {[%clk 0:00:55]}  Qa4+ {[%clk 0:01:40]} 19. b3 {[%clk 0:00:49]}  Qxe4+ {[%clk 0:01:38]} 20. Qd3 {[%clk 0:00:41]}  Ra2+ {[%clk 0:01:32]} 21. Kc1 {[%clk 0:00:42]}  Qxd3 {[%clk 0:01:28]} 22. Rxd3 {[%clk 0:00:39]}  Ra1+ {[%clk 0:01:28]} 0-1


[Site "https://www.chess.com"]

[Event "Titled Tuesday Blitz March 08 Early 2022"]
[White "Donchenko, Alexander"]
[Black "Jary, Sergey"]
[WhiteFideId "24603295"]
[BlackFideId "14110350"]
[WhiteElo "2539"]
[BlackElo "2260"]
[Result "1/2-1/2"]
[Round "07"]
[TimeControl "180+1"]
[Date "2022.03.08"]
[WhiteClock "0:00:03"]
[BlackClock "0:00:18"]

1. e4 {[%clk 0:03:00]}  c5 {[%clk 0:02:59]} 2. Nf3 {[%clk 0:03:01]}  Nc6 {[%clk 0:03:00]} 3. Nc3 {[%clk 0:03:00]}  g6 {[%clk 0:02:59]} 4. Bb5 {[%clk 0:02:58]}  Bg7 {[%clk 0:03:00]} 5. Bxc6 {[%clk 0:02:57]}  bxc6 {[%clk 0:03:00]} 6. O-O {[%clk 0:02:56]}  d5 {[%clk 0:02:59]} 7. Re1 {[%clk 0:02:51]}  Bg4 {[%clk 0:02:45]} 8. h3 {[%clk 0:02:50]}  Bxf3 {[%clk 0:02:41]} 9. Qxf3 {[%clk 0:02:51]}  Nf6 {[%clk 0:02:41]} 10. d3 {[%clk 0:02:44]}  O-O {[%clk 0:02:41]} 11. Bg5 {[%clk 0:02:42]}  h6 {[%clk 0:02:40]} 12. Bh4 {[%clk 0:02:39]}  Re8 {[%clk 0:02:40]} 13. exd5 {[%clk 0:02:30]}  Nxd5 {[%clk 0:02:29]} 14. Ne4 {[%clk 0:02:04]}  f5 {[%clk 0:02:22]} 15. Nxc5 {[%clk 0:01:59]}  Qa5 {[%clk 0:02:21]} 16. Nb3 {[%clk 0:01:47]}  Qc7 {[%clk 0:02:21]} 17. c3 {[%clk 0:01:44]}  e5 {[%clk 0:02:18]} 18. Qe2 {[%clk 0:01:29]}  Kh7 {[%clk 0:02:11]} 19. f3 {[%clk 0:01:28]}  a5 {[%clk 0:02:05]} 20. Nc5 {[%clk 0:01:25]}  Qd6 {[%clk 0:01:52]} 21. Bf2 {[%clk 0:01:24]}  Nf4 {[%clk 0:01:51]} 22. Qc2 {[%clk 0:01:22]}  Rab8 {[%clk 0:01:44]} 23. a3 {[%clk 0:01:16]}  Bf8 {[%clk 0:01:41]} 24. b4 {[%clk 0:01:15]}  Qd5 {[%clk 0:01:35]} 25. c4 {[%clk 0:01:12]}  Qd6 {[%clk 0:01:31]} 26. Qc3 {[%clk 0:01:08]}  Bg7 {[%clk 0:01:28]} 27. Rad1 {[%clk 0:01:01]}  axb4 {[%clk 0:01:23]} 28. axb4 {[%clk 0:01:00]}  e4 {[%clk 0:01:24]} 29. d4 {[%clk 0:00:50]}  g5 {[%clk 0:01:20]} 30. fxe4 {[%clk 0:00:48]}  fxe4 {[%clk 0:01:17]} 31. Nxe4 {[%clk 0:00:47]}  Qg6 {[%clk 0:01:14]} 32. Qf3 {[%clk 0:00:41]}  Rxb4 {[%clk 0:01:10]} 33. Bg3 {[%clk 0:00:40]}  Rxc4 {[%clk 0:01:07]} 34. Bxf4 {[%clk 0:00:39]}  Bxd4+ {[%clk 0:00:58]} 35. Kh1 {[%clk 0:00:22]}  gxf4 {[%clk 0:00:57]} 36. Qxf4 {[%clk 0:00:22]}  Rc2 {[%clk 0:00:47]} 37. Qf3 {[%clk 0:00:16]}  Bg7 {[%clk 0:00:44]} 38. Nf6+ {[%clk 0:00:13]}  Bxf6 {[%clk 0:00:41]} 39. Rxe8 {[%clk 0:00:13]}  Qxe8 {[%clk 0:00:36]} 40. Qxf6 {[%clk 0:00:14]}  Rxg2 {[%clk 0:00:35]} 41. Rd8 {[%clk 0:00:02]}  Rg6 {[%clk 0:00:27]} 42. Rxe8 {[%clk 0:00:02]}  Rxf6 {[%clk 0:00:26]} 43. Kg2 {[%clk 0:00:03]}  Kg6 {[%clk 0:00:26]} 44. Rc8 {[%clk 0:00:03]}  Rd6 {[%clk 0:00:26]} 45. Kf3 {[%clk 0:00:03]}  Kf5 {[%clk 0:00:26]} 46. Ke3 {[%clk 0:00:03]}  Ke5 {[%clk 0:00:26]} 47. Rf8 {[%clk 0:00:03]}  Kd5 {[%clk 0:00:26]} 48. Kd3 {[%clk 0:00:03]}  c5 {[%clk 0:00:25]} 49. Rf4 {[%clk 0:00:02]}  Ke5+ {[%clk 0:00:24]} 50. Ke3 {[%clk 0:00:02]}  Rd1 {[%clk 0:00:22]} 51. Rh4 {[%clk 0:00:01]}  Rd6 {[%clk 0:00:21]} 52. Rh5+ {[%clk 0:00:02]}  Ke6 {[%clk 0:00:19]} 53. Rxc5 {[%clk 0:00:03]}  Kf6 {[%clk 0:00:18]} 54. Kf3 {[%clk 0:00:03]}  Kg6 {[%clk 0:00:18]} 55. Kg4 {[%clk 0:00:03]}  Rd4+ {[%clk 0:00:18]} 1/2-1/2


[Site "https://www.chess.com"]

[Event "Titled Tuesday Blitz March 08 Early 2022"]
[White "Dwilewicz, Katarzyna"]
[Black "Gracia Alvarez, Gerardo Antonio"]
[WhiteFideId "1148486"]
[BlackFideId "5109124"]
[WhiteElo "1907"]
[BlackElo "2139"]
[Result "0-1"]
[Round "07"]
[TimeControl "180+1"]
[Date "2022.03.09"]
[WhiteClock "0:00:03"]
[BlackClock "0:00:53"]

1. e4 {[%clk 0:03:00]}  c5 {[%clk 0:03:00]} 2. Nf3 {[%clk 0:03:00]}  Nc6 {[%clk 0:03:00]} 3. d4 {[%clk 0:02:57]}  cxd4 {[%clk 0:03:00]} 4. Nxd4 {[%clk 0:02:58]}  Nf6 {[%clk 0:03:00]} 5. Nc3 {[%clk 0:02:58]}  e5 {[%clk 0:03:01]} 6. Ndb5 {[%clk 0:02:55]}  h6 {[%clk 0:03:01]} 7. Nd5 {[%clk 0:02:47]}  Nxd5 {[%clk 0:03:00]} 8. exd5 {[%clk 0:02:47]}  a6 {[%clk 0:03:00]} 9. dxc6 {[%clk 0:02:42]}  axb5 {[%clk 0:03:01]} 10. cxd7+ {[%clk 0:02:33]}  Bxd7 {[%clk 0:03:02]} 11. Be2 {[%clk 0:02:25]}  Bc6 {[%clk 0:03:02]} 12. O-O {[%clk 0:02:22]}  Qxd1 {[%clk 0:03:03]} 13. Rxd1 {[%clk 0:02:22]}  Bc5 {[%clk 0:03:04]} 14. Bd2 {[%clk 0:01:56]}  b4 {[%clk 0:02:48]} 15. Bc4 {[%clk 0:01:55]}  Ke7 {[%clk 0:02:44]} 16. Kf1 {[%clk 0:01:42]}  Rhd8 {[%clk 0:02:43]} 17. f3 {[%clk 0:01:42]}  f5 {[%clk 0:02:38]} 18. Ke2 {[%clk 0:01:41]}  g5 {[%clk 0:02:31]} 19. Be3 {[%clk 0:01:40]}  b6 {[%clk 0:02:22]} 20. Bd3 {[%clk 0:00:41]}  Kf6 {[%clk 0:02:04]} 21. Bc4 {[%clk 0:00:34]}  h5 {[%clk 0:01:47]} 22. Rxd8 {[%clk 0:00:30]}  Rxd8 {[%clk 0:01:46]} 23. Bxc5 {[%clk 0:00:26]}  bxc5 {[%clk 0:01:45]} 24. a4 {[%clk 0:00:26]}  g4 {[%clk 0:01:30]} 25. a5 {[%clk 0:00:22]}  gxf3+ {[%clk 0:01:22]} 26. gxf3 {[%clk 0:00:23]}  Rd4 {[%clk 0:01:23]} 27. b3 {[%clk 0:00:20]}  Rh4 {[%clk 0:01:23]} 28. a6 {[%clk 0:00:19]}  Rxh2+ {[%clk 0:01:21]} 29. Ke3 {[%clk 0:00:13]}  f4+ {[%clk 0:01:12]} 30. Kd3 {[%clk 0:00:13]}  Bxf3 {[%clk 0:01:12]} 31. Bb5 {[%clk 0:00:03]}  Be2+ {[%clk 0:01:04]} 32. Ke4 {[%clk 0:00:03]}  Bxb5 {[%clk 0:01:04]} 33. a7 {[%clk 0:00:04]}  Bc6+ {[%clk 0:01:03]} 34. Kd3 {[%clk 0:00:03]}  Bd5 {[%clk 0:00:56]} 35. Ra6+ {[%clk 0:00:02]}  Kf5 {[%clk 0:00:54]} 36. Rd6 {[%clk 0:00:03]}  e4# {[%clk 0:00:53]} 0-1


[Site "https://www.chess.com"]

[Event "Titled Tuesday Blitz March 08 Early 2022"]
[White "Einarsson, Halldor Gretar"]
[Black "Tarasova, Viktoriya"]
[WhiteFideId "2300150"]
[BlackFideId "4175840"]
[WhiteElo "2114"]
[BlackElo "2182"]
[Result "1-0"]
[Round "07"]
[TimeControl "180+1"]
[Date "2022.03.09"]
[WhiteClock "0:00:30"]
[BlackClock "0:01:13"]

1. d4 {[%clk 0:03:00]}  Nf6 {[%clk 0:02:58]} 2. c4 {[%clk 0:02:59]}  e6 {[%clk 0:02:57]} 3. Nf3 {[%clk 0:02:58]}  b6 {[%clk 0:02:56]} 4. g3 {[%clk 0:02:56]}  Ba6 {[%clk 0:02:56]} 5. Qc2 {[%clk 0:02:55]}  c5 {[%clk 0:02:55]} 6. d5 {[%clk 0:02:54]}  Bb7 {[%clk 0:02:54]} 7. e4 {[%clk 0:02:52]}  exd5 {[%clk 0:02:49]} 8. cxd5 {[%clk 0:02:52]}  d6 {[%clk 0:02:49]} 9. Bg2 {[%clk 0:02:47]}  Be7 {[%clk 0:02:48]} 10. O-O {[%clk 0:02:47]}  O-O {[%clk 0:02:42]} 11. Nc3 {[%clk 0:02:45]}  a6 {[%clk 0:02:39]} 12. h4 {[%clk 0:02:23]}  h6 {[%clk 0:02:33]} 13. e5 {[%clk 0:01:55]}  dxe5 {[%clk 0:02:31]} 14. Nxe5 {[%clk 0:01:53]}  Bd6 {[%clk 0:02:30]} 15. Nc4 {[%clk 0:01:51]}  b5 {[%clk 0:02:21]} 16. Nxd6 {[%clk 0:01:50]}  Qxd6 {[%clk 0:02:22]} 17. Bf4 {[%clk 0:01:49]}  Qd7 {[%clk 0:02:22]} 18. Rad1 {[%clk 0:01:44]}  b4 {[%clk 0:02:22]} 19. Na4 {[%clk 0:01:42]}  Rc8 {[%clk 0:02:20]} 20. Nb6 {[%clk 0:01:40]}  Qb5 {[%clk 0:02:18]} 21. Nxc8 {[%clk 0:01:36]}  Bxc8 {[%clk 0:02:17]} 22. d6 {[%clk 0:01:34]}  Ra7 {[%clk 0:02:17]} 23. Rfe1 {[%clk 0:01:25]}  Bb7 {[%clk 0:02:15]} 24. Re7 {[%clk 0:01:19]}  Nbd7 {[%clk 0:02:14]} 25. Bf1 {[%clk 0:00:58]}  Qc6 {[%clk 0:02:12]} 26. f3 {[%clk 0:00:55]}  Qxf3 {[%clk 0:02:10]} 27. Bg2 {[%clk 0:00:54]}  Qg4 {[%clk 0:02:03]} 28. Qb3 {[%clk 0:00:45]}  c4 {[%clk 0:01:39]} 29. Qc2 {[%clk 0:00:39]}  Nh5 {[%clk 0:01:30]} 30. Re8+ {[%clk 0:00:33]}  Nf8 {[%clk 0:01:29]} 31. d7 {[%clk 0:00:32]}  b3 {[%clk 0:01:14]} 32. Rxf8+ {[%clk 0:00:31]}  Kxf8 {[%clk 0:01:13]} 33. d8=Q# {[%clk 0:00:30]} 1-0


[Site "https://www.chess.com"]

[Event "Titled Tuesday Blitz March 08 Early 2022"]
[White "Ezat, Mohamed"]
[Black "Jakubowska, Anna"]
[WhiteFideId "10600906"]
[BlackFideId "1121952"]
[WhiteElo "2386"]
[BlackElo "1924"]
[Result "1/2-1/2"]
[Round "07"]
[TimeControl "180+1"]
[Date "2022.03.09"]
[WhiteClock "0:00:39"]
[BlackClock "0:00:12"]

1. d4 {[%clk 0:02:56]}  d5 {[%clk 0:02:59]} 2. c4 {[%clk 0:02:52]}  c6 {[%clk 0:02:59]} 3. Nc3 {[%clk 0:02:51]}  Nf6 {[%clk 0:02:58]} 4. cxd5 {[%clk 0:02:50]}  cxd5 {[%clk 0:02:58]} 5. Bf4 {[%clk 0:02:50]}  a6 {[%clk 0:02:59]} 6. e3 {[%clk 0:02:50]}  Nc6 {[%clk 0:02:59]} 7. Bd3 {[%clk 0:02:51]}  g6 {[%clk 0:02:57]} 8. h3 {[%clk 0:02:50]}  Bg7 {[%clk 0:02:58]} 9. Nf3 {[%clk 0:02:51]}  O-O {[%clk 0:02:57]} 10. Rc1 {[%clk 0:02:51]}  Bf5 {[%clk 0:02:53]} 11. Bxf5 {[%clk 0:02:50]}  gxf5 {[%clk 0:02:54]} 12. g4 {[%clk 0:02:51]}  Qd7 {[%clk 0:02:49]} 13. Ne5 {[%clk 0:02:49]}  Nxe5 {[%clk 0:02:47]} 14. dxe5 {[%clk 0:02:48]}  Ne4 {[%clk 0:02:46]} 15. Qxd5 {[%clk 0:02:48]}  Qc8 {[%clk 0:02:04]} 16. gxf5 {[%clk 0:02:44]}  Nxc3 {[%clk 0:01:56]} 17. Rxc3 {[%clk 0:02:44]}  Qxf5 {[%clk 0:01:57]} 18. Qd3 {[%clk 0:02:41]}  Qe6 {[%clk 0:01:49]} 19. Qc4 {[%clk 0:02:39]}  Qf5 {[%clk 0:01:46]} 20. e6 {[%clk 0:02:36]}  Bxc3+ {[%clk 0:01:43]} 21. Qxc3 {[%clk 0:02:31]}  f6 {[%clk 0:01:29]} 22. Rg1+ {[%clk 0:02:27]}  Kh8 {[%clk 0:01:29]} 23. Rg3 {[%clk 0:02:07]}  Rac8 {[%clk 0:01:22]} 24. Qb3 {[%clk 0:02:01]}  Rfd8 {[%clk 0:01:01]} 25. Kf1 {[%clk 0:01:50]}  Qb1+ {[%clk 0:00:58]} 26. Kg2 {[%clk 0:01:49]}  Rc1 {[%clk 0:00:51]} 27. Kf3 {[%clk 0:01:45]}  Rf1 {[%clk 0:00:24]} 28. Rg2 {[%clk 0:01:38]}  Qf5 {[%clk 0:00:20]} 29. Ke2 {[%clk 0:01:08]}  Rc1 {[%clk 0:00:18]} 30. Qxb7 {[%clk 0:01:04]}  Rc2+ {[%clk 0:00:17]} 31. Kf3 {[%clk 0:01:04]}  Qxh3+ {[%clk 0:00:17]} 32. Bg3 {[%clk 0:01:00]}  Qf5+ {[%clk 0:00:15]} 33. Bf4 {[%clk 0:00:59]}  Qh3+ {[%clk 0:00:15]} 34. Rg3 {[%clk 0:00:53]}  Qh1+ {[%clk 0:00:15]} 35. Rg2 {[%clk 0:00:53]}  Qh5+ {[%clk 0:00:15]} 36. Rg4 {[%clk 0:00:40]}  Qh1+ {[%clk 0:00:14]} 37. Rg2 {[%clk 0:00:39]}  Qh3+ {[%clk 0:00:12]} 1/2-1/2


[Site "https://www.chess.com"]